bitfinex-derivatives/quotes_BTCF0:USTF0_20250907
["timestamp","ask_amount","ask_price","bid_price","bid_amount"]
[1757212600244,1.13852414,110590.0,110580.0,0.35781]
[1757212600543,1.13852414,110590.0,110580.0,0.62021886]
[1757212601445,0.87611528,110590.0,110580.0,0.35781]
[1757212610749,0.86328528,110590.0,110580.0,0.37113]
[1757212612448,0.87623528,110590.0,110580.0,0.37113]
[1757212612647,0.87623528,110590.0,110580.0,0.48502328]
[1757212613849,0.87623528,110590.0,110580.0,0.74744918]
[1757212618647,0.87623528,110590.0,110580.0,0.48502328]
[1757212626256,0.87623528,110590.0,110580.0,0.37113]
[1757212627157,0.87623528,110590.0,110580.0,0.35781]
[1757212628056,1.13866118,110590.0,110580.0,0.35781]
[1757212628258,1.63866118,110590.0,110580.0,0.11841328]
[1757212628758,1.63866118,110590.0,110580.0,0.00452]
[1757212629861,1.37623528,110590.0,110580.0,0.00452]
[1757212630056,1.63866118,110590.0,110580.0,0.00452]
[1757212632162,1.63866118,110590.0,110580.0,0.02754]
[1757212640267,1.63866118,110590.0,110580.0,0.14143328]
[1757212640667,1.37623528,110590.0,110580.0,0.14143328]
[1757212640863,1.63866118,110590.0,110580.0,0.00452]
[1757212641970,1.63866118,110590.0,110580.0,0.02657]
[1757212649765,1.63866118,110590.0,110580.0,0.14046328]
[1757212651673,1.63866118,110590.0,110580.0,0.02657]
[1757212652274,1.63866118,110590.0,110580.0,0.00452]
[1757212652976,1.37623528,110590.0,110580.0,0.00452]
[1757212653174,1.63866118,110590.0,110580.0,0.00452]
[1757212654876,1.63866118,110590.0,110580.0,0.11841328]
[1757212658179,1.37623528,110590.0,110580.0,0.11841328]
[1757212658380,1.63866118,110590.0,110580.0,0.11841328]
[1757212659283,1.38866118,110590.0,110580.0,0.11841328]
[1757212661486,1.38871115,110590.0,110580.0,0.11841328]
[1757212663986,1.38871115,110590.0,110580.0,0.14046328]
[1757212666387,1.65118702,110590.0,110580.0,0.14046328]
[1757212666588,1.38871115,110590.0,110580.0,0.14046328]
[1757212668387,1.12623528,110590.0,110580.0,0.14046328]
[1757212668587,1.38871115,110590.0,110580.0,0.14046328]
[1757212669090,1.38871115,110590.0,110580.0,0.11841328]
[1757212671795,1.38871115,110590.0,110580.0,0.00452]
[1757212673887,0.56979115,110590.0,110580.0,0.02636]
[1757212674094,1.38823115,110590.0,110580.0,0.02636]
[1757212677494,0.56979115,110590.0,110580.0,0.02636]
[1757212677695,1.38823115,110590.0,110580.0,0.02636]
[1757212683398,1.38823115,110590.0,110580.0,0.00452]
[1757212685701,1.65070702,110590.0,110580.0,0.00452]
[1757212690802,1.38823115,110590.0,110580.0,0.00452]
[1757212691203,1.65070702,110590.0,110580.0,0.00452]
[1757212691602,1.38823115,110590.0,110580.0,0.00452]
[1757212697010,0.56979115,110590.0,110580.0,0.00452]
[1757212697211,1.37815115,110590.0,110580.0,0.02636]
[1757212697608,0.55979115,110590.0,110580.0,0.02636]
[1757212697805,1.51815115,110590.0,110580.0,0.02636]
[1757212698313,0.31979115,110590.0,110580.0,0.02636]
[1757212698609,1.49815115,110590.0,110580.0,0.02636]
[1757212702313,1.49815115,110590.0,110580.0,0.00452]
[1757212703916,1.49815115,110590.0,110580.0,0.02599]
[1757212720323,1.47737587,110590.0,110580.0,0.02599]
[1757212720628,1.49817307,110590.0,110580.0,0.02599]
[1757212723429,1.49816958,110590.0,110580.0,0.02599]
[1757212741844,1.2356972,110590.0,110580.0,0.02599]
[1757212742044,1.49816958,110590.0,110580.0,0.02599]
[1757212750248,1.2356972,110590.0,110580.0,0.02599]
[1757212750449,1.49816958,110590.0,110580.0,0.02599]
[1757212751654,1.2356972,110590.0,110580.0,0.02599]
[1757212751950,1.49816958,110590.0,110580.0,0.02599]
[1757212759355,1.2356972,110590.0,110580.0,0.02599]
[1757212759559,1.49816958,110590.0,110580.0,0.02599]
[1757212766771,0.67980958,110590.0,110580.0,0.02599]
[1757212766971,1.49780958,110590.0,110580.0,0.02599]
[1757212785491,1.49780632,110590.0,110580.0,0.02599]
[1757212797900,1.2353372,110590.0,110580.0,0.02599]
[1757212798097,1.49780632,110590.0,110580.0,0.02599]
[1757212805302,1.2353372,110590.0,110580.0,0.02599]
[1757212805503,1.49780632,110590.0,110580.0,0.02599]
[1757212806399,1.49780632,110590.0,110580.0,0.00452]
[1757212829124,1.49780632,110590.0,110580.0,0.11841328]
[1757212830520,1.76027544,110590.0,110580.0,0.11841328]
[1757212831128,1.76027544,110590.0,110580.0,0.00452]
[1757212831523,1.76027544,110590.0,110580.0,0.11841328]
[1757212832425,1.76027544,110590.0,110580.0,0.00452]
[1757212833426,0.03521,110580.0,110570.0,0.04056733]
[1757212833729,0.64777912,110580.0,110570.0,0.15436061]
[1757212834717,0.64777912,110580.0,110570.0,0.15536061]
[1757212835029,0.64777912,110580.0,110570.0,0.15636061]
[1757212836630,0.64777912,110580.0,110570.0,0.15536061]
[1757212837330,0.64777912,110580.0,110570.0,0.41782973]
[1757212837530,0.64777912,110580.0,110570.0,0.41682973]
[1757212837932,0.64777912,110580.0,110570.0,0.04046733]
[1757212838125,0.64777912,110580.0,110570.0,0.30293645]
[1757212841335,0.64777912,110580.0,110570.0,0.41682973]
[1757212841629,0.38531,110580.0,110570.0,0.41682973]
[1757212841830,0.64777912,110580.0,110570.0,0.41682973]
[1757212843836,1.11545912,110580.0,110570.0,0.41682973]
[1757212844027,1.11545912,110580.0,110570.0,0.30293645]
[1757212844225,1.46545912,110580.0,110570.0,0.30293645]
[1757212845438,1.20299,110580.0,110570.0,0.30293042]
[1757212850141,1.46545309,110580.0,110570.0,0.04046733]
[1757212850733,1.46545309,110580.0,110570.0,0.15444447]
[1757212851436,1.20299,110580.0,110570.0,0.15444447]
[1757212851735,1.46545309,110580.0,110570.0,0.15444447]
[1757212852641,1.20299,110580.0,110570.0,0.15444447]
[1757212852934,1.46545309,110580.0,110570.0,0.15444447]
[1757212853637,1.20299,110580.0,110570.0,0.15444447]
[1757212853937,1.20299,110580.0,110570.0,0.41690756]
[1757212858142,1.20299,110580.0,110570.0,0.15444447]
[1757212860045,1.20299,110580.0,110570.0,0.04046733]
[1757212860940,1.20299,110580.0,110570.0,0.15444447]
[1757212865142,1.46545309,110580.0,110570.0,0.15444447]
[1757212868650,1.46545309,110580.0,110570.0,0.15896447]
[1757212870548,1.46545309,110580.0,110570.0,0.04498733]
[1757212870952,1.46545309,110580.0,110570.0,0.15899251]
[1757212886058,0.03531,110580.0,110570.0,0.15899251]
[1757212886357,1.11577309,110580.0,110570.0,0.15899251]
[1757212886561,1.11589309,110580.0,110570.0,0.15899251]
[1757212887663,1.44589309,110580.0,110570.0,0.15899251]
[1757212892867,1.18343,110580.0,110570.0,0.15899251]
[1757212893070,1.44589309,110580.0,110570.0,0.15899251]
[1757212893268,1.11577309,110580.0,110570.0,0.15899251]
[1757212893762,1.11577309,110580.0,110570.0,0.15447251]
[1757212894269,1.11577309,110580.0,110570.0,0.04046733]
[1757212894469,1.11577309,110580.0,110570.0,0.15445039]
[1757212894670,1.11577309,110580.0,110570.0,0.15897039]
[1757212895171,1.44577309,110580.0,110570.0,0.15897039]
[1757212895672,1.21323,110580.0,110570.0,0.15897039]
[1757212904085,1.47569309,110580.0,110570.0,0.15897039]
[1757212906389,1.47569309,110580.0,110570.0,0.04498733]
[1757212907487,1.47571808,110580.0,110570.0,0.30747541]
[1757212910386,1.47571808,110580.0,110570.0,0.28917808]
[1757212915693,1.47571808,110580.0,110570.0,0.02669]
[1757212915893,1.47571808,110580.0,110570.0,0.28917808]
[1757212916898,1.47571808,110580.0,110570.0,0.02669]
[1757212917291,1.47571808,110580.0,110570.0,0.40318394]
[1757212918197,1.73820616,110580.0,110570.0,0.40318394]
[1757212919791,1.73820616,110580.0,110570.0,0.14069586]
[1757212919989,1.73820616,110580.0,110570.0,0.00452]
[1757212928205,1.21323,110580.0,110570.0,0.00452]
[1757212928406,1.73820616,110580.0,110570.0,0.00452]
[1757212929005,1.73820616,110580.0,110570.0,0.11852586]
[1757212929405,1.73820616,110580.0,110570.0,0.02572]
[1757212929906,1.73820616,110580.0,110570.0,0.13972586]
[1757212930605,1.73820616,110580.0,110570.0,0.02572]
[1757212932303,1.73820616,110580.0,110570.0,0.13972586]
[1757212937602,1.73820616,110580.0,110570.0,0.40221394]
[1757212938706,1.73820616,110580.0,110570.0,0.28820808]
[1757212939211,1.73820616,110580.0,110570.0,0.40219801]
[1757212939809,1.85842419,110580.0,110570.0,0.40219801]
[1757212942214,1.33344803,110580.0,110570.0,0.40219801]
[1757212942414,1.85842419,110580.0,110570.0,0.40219801]
[1757212952315,1.85842419,110580.0,110570.0,0.11850993]
[1757212954229,1.85842419,110580.0,110570.0,0.00452]
[1757212955719,1.85842419,110580.0,110570.0,0.11850993]
[1757212956621,1.85842419,110580.0,110570.0,0.00452]
[1757212957119,1.85842419,110580.0,110570.0,0.11850993]
[1757212960222,1.85842419,110580.0,110570.0,0.13990993]
[1757212961826,1.85842419,110580.0,110570.0,0.11850993]
[1757212965535,1.87974425,110580.0,110570.0,0.11850993]
[1757212969336,1.35476809,110580.0,110570.0,0.13990993]
[1757212969633,1.61726749,110580.0,110570.0,0.13990993]
[1757212980838,1.61726749,110580.0,110570.0,0.02592]
[1757212986350,1.61726749,110580.0,110570.0,0.00452]
[1757212987850,1.61726749,110580.0,110570.0,0.02738]
[1757212990852,1.61726749,110580.0,110570.0,0.14136993]
[1757212995766,1.61726749,110580.0,110570.0,0.02738]
[1757212996562,1.61726749,110580.0,110570.0,0.14136993]
[1757212996859,1.61726749,110580.0,110570.0,0.00452]
[1757213000872,1.61726749,110580.0,110570.0,0.11850993]
[1757213001969,1.61726749,110580.0,110570.0,0.13963993]
[1757213003369,1.61726749,110580.0,110570.0,0.02565]
[1757213005772,1.61726749,110580.0,110570.0,0.13963993]
[1757213007177,1.61726749,110580.0,110570.0,0.02565]
[1757213007475,1.61726749,110580.0,110570.0,0.13964165]
[1757213008579,1.61726749,110580.0,110570.0,0.02565]
[1757213013680,1.35476809,110580.0,110570.0,0.02565]
[1757213013881,1.61726749,110580.0,110570.0,0.13964128]
[1757213015584,1.35476809,110580.0,110570.0,0.13964128]
[1757213015784,1.61726749,110580.0,110570.0,0.13964128]
[1757213017684,0.79934749,110580.0,110570.0,0.13964128]
[1757213017886,1.61694749,110580.0,110570.0,0.13964128]
[1757213018886,0.79934749,110580.0,110570.0,0.13964128]
[1757213019087,1.35444809,110580.0,110570.0,0.13964128]
[1757213019290,1.61694749,110580.0,110570.0,0.13964128]
[1757213020289,0.79934749,110580.0,110570.0,0.13964128]
[1757213020589,1.61694749,110580.0,110570.0,0.13964128]
[1757213024080,1.35444809,110580.0,110570.0,0.13964128]
[1757213024286,1.61694749,110580.0,110570.0,0.13964128]
[1757213028691,1.61694749,110580.0,110570.0,0.02565]
[1757213029595,1.87943115,110580.0,110570.0,0.28814153]
[1757213031696,1.61693962,110580.0,110570.0,0.28814153]
[1757213032594,1.61693962,110580.0,110570.0,0.40213281]
[1757213033392,0.79933962,110580.0,110570.0,0.40213281]
[1757213033698,1.61693962,110580.0,110570.0,0.41582281]
[1757213035096,0.79933962,110580.0,110570.0,0.41582281]
[1757213035297,1.61693962,110580.0,110570.0,0.41582281]
[1757213037004,1.61693962,110580.0,110570.0,0.15333128]
[1757213037301,1.61693962,110580.0,110570.0,0.41582281]
[1757213039303,0.79933962,110580.0,110570.0,0.41582281]
[1757213039493,1.61689962,110580.0,110570.0,0.41582281]
[1757213040094,0.79933962,110580.0,110570.0,0.41582281]
[1757213040496,1.61689962,110580.0,110570.0,0.41582281]
[1757213040698,1.35440809,110580.0,110570.0,0.30183153]
[1757213040900,1.61689962,110580.0,110570.0,0.30183153]
[1757213043102,1.35440809,110580.0,110570.0,0.30183153]
[1757213043301,1.61689962,110580.0,110570.0,0.30183153]
[1757213044101,1.61689962,110580.0,110570.0,0.03934]
[1757213044402,1.61689962,110580.0,110570.0,0.30183153]
[1757213046908,1.61689962,110580.0,110570.0,0.28814153]
[1757213048796,1.61689962,110580.0,110570.0,0.40213281]
[1757213052408,1.61689962,110580.0,110570.0,0.28814153]
[1757213054405,1.61689962,110580.0,110570.0,0.40213281]
[1757213057308,1.61689962,110580.0,110570.0,0.28814153]
[1757213057808,1.61685962,110580.0,110570.0,0.28814153]
[1757213058509,1.61685962,110580.0,110570.0,0.40213962]
[1757213061309,1.61685962,110580.0,110570.0,0.28814153]
[1757213066518,1.35436809,110580.0,110570.0,0.28814153]
[1757213066716,1.61685962,110580.0,110570.0,0.28814153]
[1757213071220,1.61685962,110580.0,110570.0,0.40213962]
[1757213072218,1.61681962,110580.0,110570.0,0.40213962]
[1757213075222,1.61681962,110580.0,110570.0,0.13964809]
[1757213075418,1.61681962,110580.0,110570.0,0.40213962]
[1757213075618,1.61681962,110580.0,110570.0,0.28814153]
[1757213076922,1.61681962,110580.0,110570.0,0.02565]
[1757213077124,1.61681962,110580.0,110570.0,0.28814153]
[1757213077724,1.35432809,110580.0,110570.0,0.28814153]
[1757213077929,1.61681962,110580.0,110570.0,0.02565]
[1757213078119,1.61681962,110580.0,110570.0,0.28814153]
[1757213078720,1.61681962,110580.0,110570.0,0.02565]
[1757213079025,1.61681962,110580.0,110570.0,0.28814153]
[1757213079825,0.79933962,110580.0,110570.0,0.28814153]
[1757213080025,1.61681962,110580.0,110570.0,0.28814153]
[1757213083221,1.61681962,110580.0,110570.0,0.40213962]
[1757213084928,1.61681962,110580.0,110570.0,0.13964809]
[1757213085129,1.61681962,110580.0,110570.0,0.40213962]
[1757213085324,1.59549956,110580.0,110570.0,0.40213962]
[1757213090931,1.85799109,110580.0,110570.0,0.40213962]
[1757213091634,1.59550341,110580.0,110570.0,0.13964809]
[1757213095739,1.59550341,110580.0,110570.0,0.02565]
[1757213096640,1.59550341,110580.0,110570.0,0.13965594]
[1757213097933,0.77802341,110580.0,110570.0,0.13965594]
[1757213098138,1.59542341,110580.0,110570.0,0.13965594]
[1757213104247,0.39531,110580.0,110570.0,0.40215132]
[1757213104541,0.66243,110580.0,110570.0,0.88198538]
[1757213104736,0.66243,110580.0,110570.0,0.66599132]
[1757213104937,0.66243,110580.0,110570.0,1.04599132]
[1757213105936,0.02171,110580.0,110570.0,0.66599132]
[1757213106141,0.50959,110580.0,110570.0,0.99599132]
[1757213106343,0.80859,110580.0,110570.0,0.99599132]
[1757213106640,0.02171,110580.0,110570.0,0.88198538]
[1757213107047,0.02171,110580.0,110570.0,1.04483007]
[1757213107946,0.02171,110580.0,110570.0,1.04583007]
[1757213108544,0.02171,110580.0,110570.0,1.04683007]
[1757213108740,0.02171,110580.0,110570.0,0.88398538]
[1757213110038,0.02171,110580.0,110570.0,0.55398538]
[1757213110343,0.02171,110580.0,110570.0,0.89398538]
[1757213110743,0.02171,110580.0,110570.0,0.55398538]
[1757213111243,0.02171,110580.0,110570.0,0.86398538]
[1757213113649,0.02171,110580.0,110570.0,0.55398538]
[1757213114048,0.02171,110580.0,110570.0,0.87398538]
[1757213118647,0.0001,110580.0,110570.0,0.55398538]
[1757213118848,0.0001,110580.0,110570.0,0.62398538]
[1757213119050,0.0001,110580.0,110570.0,0.68398538]
[1757213119255,0.0001,110580.0,110570.0,0.30398538]
[1757213120044,0.0001,110580.0,110570.0,0.63398538]
[1757213121554,0.02309,110580.0,110570.0,0.63398538]
[1757213126959,0.0001,110580.0,110570.0,0.63398538]
[1757213128864,0.0001,110580.0,110570.0,0.98690676]
[1757213131669,0.0001,110580.0,110570.0,0.63398538]
[1757213134167,0.0001,110580.0,110570.0,0.30398538]
[1757213134362,0.0001,110580.0,110570.0,0.65398538]
[1757213135472,0.0001,110580.0,110570.0,0.68398538]
[1757213136366,0.0001,110580.0,110570.0,0.04149]
[1757213136673,0.0001,110580.0,110570.0,0.65398538]
[1757213140275,0.0001,110580.0,110570.0,0.81683007]
[1757213140673,0.0001,110580.0,110570.0,1.63511007]
[1757213146278,0.0001,110580.0,110570.0,1.28511007]
[1757213146577,0.0001,110580.0,110570.0,1.63507007]
[1757213148681,0.0001,110580.0,110570.0,1.02257469]
[1757213148880,0.02205,110580.0,110570.0,1.63515007]
[1757213150385,0.02205,110580.0,110570.0,1.65332112]
[1757213150584,0.02205,110580.0,110570.0,1.61332112]
[1757213151582,0.02205,110580.0,110570.0,1.87559652]
[1757213155388,0.02205,110580.0,110570.0,0.79727652]
[1757213155687,0.02205,110580.0,110570.0,1.90547652]
[1757213156887,0.02205,110580.0,110570.0,1.56547652]
[1757213157188,0.02205,110580.0,110570.0,1.89547652]
[1757213158089,0.0001,110580.0,110570.0,1.89547652]
[1757213160890,0.0001,110580.0,110570.0,1.87547652]
[1757213166294,0.0001,110580.0,110570.0,1.87447652]
[1757213166595,0.0001,110580.0,110570.0,1.87547652]
[1757213167696,0.0001,110580.0,110570.0,1.87447652]
[1757213167906,0.0001,110580.0,110570.0,1.87547652]
[1757213170700,0.0001,110580.0,110570.0,1.71263183]
[1757213175597,0.0001,110580.0,110570.0,0.89443183]
[1757213175800,0.0001,110580.0,110570.0,1.71523183]
[1757213176401,0.0001,110580.0,110570.0,1.87807652]
[1757213180507,0.0001,110580.0,110570.0,1.71523183]
[1757213181095,0.0001,110580.0,110570.0,1.87805247]
[1757213185907,0.0001,110580.0,110570.0,1.71523183]
[1757213186509,0.0001,110580.0,110570.0,1.87805247]
[1757213189211,0.0001,110580.0,110570.0,1.71523183]
[1757213191608,0.0001,110580.0,110570.0,1.47523183]
[1757213191813,0.0001,110580.0,110570.0,1.78523183]
[1757213192407,0.0001,110580.0,110570.0,1.94805247]
[1757213192812,0.0001,110580.0,110570.0,1.12725247]
[1757213193011,0.0001,110580.0,110570.0,1.94757247]
[1757213193813,0.0001,110580.0,110570.0,1.12725247]
[1757213194010,0.0001,110580.0,110570.0,1.78487183]
[1757213199611,0.0001,110580.0,110570.0,0.05966105]
[1757213199817,0.02205,110580.0,110570.0,1.45503183]
[1757213200917,0.02205,110580.0,110570.0,1.78503183]
[1757213201118,0.02205,110580.0,110570.0,1.45503183]
[1757213201316,0.02205,110580.0,110570.0,1.40503183]
[1757213201516,0.02205,110580.0,110570.0,1.74503183]
[1757213203714,0.02205,110580.0,110570.0,1.90785247]
[1757213211412,0.02205,110580.0,110570.0,1.64546295]
[1757213211617,0.02205,110580.0,110570.0,1.48264231]
[1757213215426,0.0001,110580.0,110570.0,1.48264231]
[1757213216825,0.0001,110580.0,110570.0,1.64546632]
[1757213220728,0.0001,110580.0,110570.0,1.48264231]
[1757213222335,0.0001,110580.0,110570.0,1.64546632]
[1757213226532,0.0001,110580.0,110570.0,1.48264231]
[1757213227234,0.0001,110580.0,110570.0,1.64546632]
[1757213231138,0.0001,110580.0,110570.0,1.90884758]
[1757213232738,0.0001,110580.0,110570.0,1.90984758]
[1757213235339,0.0001,110580.0,110570.0,1.74702357]
[1757213237437,0.0001,110580.0,110570.0,1.48464231]
[1757213239345,0.0001,110580.0,110570.0,1.64746632]
[1757213240130,0.0001,110580.0,110570.0,1.48464231]
[1757213243038,0.0001,110580.0,110570.0,1.74702357]
[1757213246545,0.0001,110580.0,110570.0,1.90984758]
[1757213248240,0.0001,110580.0,110570.0,1.74702357]
[1757213249048,0.0001,110580.0,110570.0,1.90984758]
[1757213252252,0.0001,110580.0,110570.0,1.74702357]
[1757213253053,0.0001,110580.0,110570.0,1.90984758]
[1757213257263,0.0001,110580.0,110570.0,1.74702357]
[1757213263670,0.0001,110580.0,110570.0,1.22226105]
[1757213263869,0.0001,110580.0,110570.0,1.48464231]
[1757213266767,0.0001,110580.0,110570.0,1.64746632]
[1757213271274,0.0001,110580.0,110570.0,1.38508506]
[1757213271476,0.0001,110580.0,110570.0,1.90982828]
[1757213271770,0.0001,110580.0,110570.0,1.64745667]
[1757213271974,0.0001,110580.0,110570.0,1.90982828]
[1757213272963,0.0001,110580.0,110570.0,1.91293769]
[1757213273372,0.0001,110580.0,110570.0,1.75011368]
[1757213285486,0.0001,110580.0,110570.0,1.22537046]
[1757213285783,0.0001,110580.0,110570.0,1.75011368]
[1757213286287,0.0001,110580.0,110570.0,1.91293769]
[1757213291085,0.0001,110580.0,110570.0,1.75011368]
[1757213295889,0.0001,110580.0,110570.0,1.91293769]
[1757213299994,0.0001,110580.0,110570.0,1.75011368]
[1757213300293,0.0001,110580.0,110570.0,1.91286882]
[1757213300498,0.0001,110580.0,110570.0,2.00329482]
[1757213301492,0.0001,110580.0,110570.0,2.00129482]
[1757213302794,0.0001,110580.0,110570.0,1.99929482]
[1757213303197,0.0001,110580.0,110570.0,1.17869482]
[1757213303391,0.0001,110580.0,110570.0,1.99825482]
[1757213305090,0.0001,110580.0,110570.0,1.90782882]
[1757213306789,0.0001,110580.0,110570.0,1.74507368]
[1757213310495,0.0001,110590.0,110580.0,0.37737525]
[1757213310797,0.02077219,110600.0,110590.0,0.03509]
[1757213310997,0.02067219,110600.0,110590.0,1.00371166]
[1757213311796,0.02067219,110600.0,110590.0,1.00823166]
[1757213313195,0.02067219,110600.0,110590.0,1.01023166]
[1757213316199,0.04373219,110600.0,110590.0,0.68023166]
[1757213316997,0.04373219,110600.0,110590.0,0.56635322]
[1757213317800,0.04373219,110600.0,110590.0,0.68018914]
[1757213318201,0.04373219,110600.0,110590.0,0.56635322]
[1757213325300,0.04373219,110600.0,110590.0,0.68018002]
[1757213326906,0.10251596,110610.0,110600.0,0.03492]
[1757213327204,0.43241596,110610.0,110600.0,0.55966322]
[1757213327401,0.43241596,110610.0,110600.0,0.67349002]
[1757213328110,0.43241596,110610.0,110600.0,0.67801002]
[1757213330408,0.10241596,110610.0,110600.0,0.98801002]
[1757213330601,0.10251596,110610.0,110600.0,0.56418322]
[1757213330997,0.10251596,110610.0,110600.0,0.67801002]
[1757213331700,0.10251596,110610.0,110600.0,0.67901002]
[1757213332401,0.10251596,110610.0,110600.0,0.68001002]
[1757213333502,0.08025596,110610.0,110600.0,0.67371229]
[1757213333907,0.08025596,110610.0,110600.0,0.78753909]
[1757213334604,0.08025596,110610.0,110600.0,0.41753909]
[1757213334805,0.08025596,110610.0,110600.0,0.72753909]
[1757213335006,0.08025596,110610.0,110600.0,0.41753909]
[1757213335308,0.08025596,110610.0,110600.0,0.75653909]
[1757213335503,0.08025596,110610.0,110600.0,0.41753909]
[1757213335712,0.10251596,110610.0,110600.0,0.41753909]
[1757213336206,0.10251596,110610.0,110600.0,0.41853909]
[1757213336611,0.10251596,110610.0,110600.0,0.41953909]
[1757213339304,0.10251596,110610.0,110600.0,0.1572668]
[1757213339599,0.10251596,110610.0,110600.0,0.41953909]
[1757213340312,0.10251596,110610.0,110600.0,0.74953909]
[1757213342310,0.10251596,110610.0,110600.0,0.41953909]
[1757213343607,0.08025596,110610.0,110600.0,0.78953909]
[1757213344212,0.08025596,110610.0,110600.0,1.05181138]
[1757213344411,0.08025596,110610.0,110600.0,0.78953909]
[1757213345812,0.08025596,110610.0,110600.0,1.05181138]
[1757213346206,0.08025596,110610.0,110600.0,0.78953909]
[1757213348613,0.08025596,110610.0,110600.0,1.05181138]
[1757213348913,0.08025596,110610.0,110600.0,0.78953909]
[1757213349114,0.08025596,110610.0,110600.0,0.67571229]
[1757213351120,0.08025596,110610.0,110600.0,0.78938054]
[1757213353524,0.08025596,110610.0,110600.0,1.05165283]
[1757213356324,0.08025596,110610.0,110600.0,0.93798458]
[1757213356514,0.08025596,110610.0,110600.0,1.05168475]
[1757213356917,0.08025596,110610.0,110600.0,0.67571229]
[1757213357125,0.08025596,110610.0,110600.0,0.93798458]
[1757213357426,0.08025596,110610.0,110600.0,0.67571229]
[1757213357619,0.08025596,110610.0,110600.0,0.93798458]
[1757213358727,0.08025596,110610.0,110600.0,0.67571229]
[1757213359726,0.08025596,110610.0,110600.0,0.93798458]
[1757213360026,0.08025596,110610.0,110600.0,0.67571229]
[1757213360427,0.08025596,110610.0,110600.0,0.93798458]
[1757213360623,0.0001,110620.0,110600.0,0.93798458]
[1757213360624,0.0001,110620.0,110610.0,0.01399]
[1757213360827,0.0001,110630.0,110620.0,0.03565]
[1757213361029,0.02329,110640.0,110630.0,0.03565]
[1757213361228,0.09319,110640.0,110630.0,0.29792229]
[1757213361425,0.09319,110640.0,110630.0,0.41164707]
[1757213361923,0.09319,110640.0,110630.0,0.41615707]
[1757213362524,0.09319,110640.0,110630.0,0.30243229]
[1757213364133,0.02319,110640.0,110630.0,0.30243229]
[1757213365034,0.05319,110640.0,110630.0,0.30243229]
[1757213366134,0.05319,110640.0,110630.0,0.41615707]
[1757213366437,0.02319,110640.0,110630.0,0.41615707]
[1757213366629,0.05319,110640.0,110630.0,0.41615707]
[1757213368536,0.02319,110640.0,110630.0,0.41615707]
[1757213370835,0.02319,110640.0,110630.0,0.30243229]
[1757213371036,0.02319,110640.0,110630.0,0.41615707]
[1757213371433,0.02319,110640.0,110630.0,0.30243229]
[1757213371840,0.02319,110640.0,110630.0,0.41615707]
[1757213375040,0.39319,110640.0,110630.0,0.15388478]
[1757213375234,0.39319,110640.0,110630.0,0.41615707]
[1757213375942,0.39319,110640.0,110630.0,0.30243229]
[1757213378144,0.02319,110640.0,110630.0,0.30243229]
[1757213380742,0.02319,110640.0,110630.0,0.61243229]
[1757213380944,0.02329,110640.0,110630.0,0.61243229]
[1757213381144,0.02329,110640.0,110630.0,0.72615707]
[1757213384743,0.02329,110640.0,110630.0,0.61243229]
[1757213385446,0.02329,110640.0,110630.0,0.72609769]
[1757213385638,0.02329,110640.0,110630.0,0.72809769]
[1757213387449,0.0001,110640.0,110630.0,0.72809769]
[1757213389748,0.0001,110640.0,110630.0,0.61443229]
[1757213393448,0.02134,110640.0,110630.0,0.87640286]
[1757213394350,0.0001,110640.0,110630.0,0.87640286]
[1757213394743,0.02134,110640.0,110630.0,0.87640286]
[1757213396056,0.0001,110640.0,110630.0,0.87640286]
[1757213396657,0.0001,110640.0,110630.0,0.99013591]
[1757213400356,0.0001,110640.0,110630.0,0.99013932]
[1757213401758,0.02134,110640.0,110630.0,0.99013932]
[1757213402257,0.0001,110640.0,110630.0,0.99013932]
[1757213402455,0.02134,110640.0,110630.0,0.99013932]
[1757213406870,0.02134,110640.0,110630.0,0.87640286]
[1757213407068,0.02134,110640.0,110630.0,0.61428143]
[1757213407260,0.02134,110640.0,110630.0,0.87640286]
[1757213408167,0.02134,110640.0,110630.0,0.61428143]
[1757213408567,0.02134,110640.0,110630.0,0.87640286]
[1757213408764,0.02134,110640.0,110630.0,0.35216]
[1757213409172,0.02134,110640.0,110630.0,0.61428143]
[1757213410577,0.80830286,110640.0,110630.0,0.35216]
[1757213410779,0.80830286,110640.0,110630.0,0.45196215]
[1757213410780,1.16830286,110640.0,110630.0,0.45196215]
[1757213411070,1.16830286,110640.0,110630.0,0.12030215]
[1757213411473,1.16830286,110640.0,110630.0,0.00651]
[1757213412176,1.16830286,110640.0,110630.0,0.00551]
[1757213412367,1.16830286,110640.0,110630.0,0.00451]
[1757213416666,1.16830286,110640.0,110630.0,0.02745]
[1757213418874,1.98750286,110640.0,110630.0,0.02745]
[1757213420975,0.64406,110640.0,110630.0,0.28957143]
[1757213421175,1.72534143,110640.0,110630.0,0.28957143]
[1757213421674,1.49534143,110640.0,110630.0,0.30254143]
[1757213422579,0.03406,110640.0,110630.0,0.30254143]
[1757213422873,1.28530143,110640.0,110630.0,0.30254143]
[1757213423080,1.43530143,110640.0,110630.0,0.30254143]
[1757213423883,1.43538143,110640.0,110630.0,0.30254143]
[1757213426184,1.17326,110640.0,110630.0,0.30254143]
[1757213426386,1.43538143,110640.0,110630.0,0.28957143]
[1757213430187,1.17326,110640.0,110630.0,0.28957143]
[1757213431187,1.17326,110640.0,110630.0,0.02745]
[1757213432388,1.17326,110640.0,110630.0,0.28957143]
[1757213435293,1.43538143,110640.0,110630.0,0.28957143]
[1757213435888,1.17326,110640.0,110630.0,0.28957143]
[1757213440500,1.17326,110640.0,110630.0,0.02745]
[1757213440794,1.17326,110640.0,110630.0,0.28957143]
[1757213441195,1.21326,110640.0,110630.0,0.28957143]
[1757213446102,1.47538143,110640.0,110630.0,0.28957143]
[1757213450809,1.47538143,110640.0,110630.0,0.40336358]
[1757213451010,1.47538143,110640.0,110630.0,0.28957143]
[1757213451508,1.47538143,110640.0,110630.0,0.40336358]
[1757213454014,1.21326,110640.0,110630.0,0.40336358]
[1757213455517,1.21326,110640.0,110630.0,0.14124215]
[1757213460822,1.21326,110640.0,110630.0,0.02745]
[1757213462125,1.21326,110640.0,110630.0,0.28965425]
[1757213469629,0.03406,110640.0,110630.0,0.30226425]
[1757213469835,1.22238,110640.0,110630.0,0.30226425]
[1757213470132,1.22238,110640.0,110630.0,0.4160564]
[1757213470633,1.22238,110640.0,110630.0,0.30226425]
[1757213471630,0.85238,110640.0,110630.0,0.30226425]
[1757213472831,0.83966,110640.0,110630.0,0.30226425]
[1757213477430,0.83966,110640.0,110630.0,0.4160564]
[1757213480540,0.83966,110640.0,110630.0,0.30226425]
[1757213484944,0.83962,110640.0,110630.0,0.30226425]
[1757213488947,0.02134,110640.0,110630.0,0.30226425]
[1757213489144,0.57498,110640.0,110630.0,0.66226425]
[1757213489446,0.57498,110640.0,110630.0,0.61226425]